Cogmind - Beta 13 @@@ ROGUE MODE // 2024.04.03 @ 02:27:38 Player: cptwinky Result: Destroyed by S-27 Virus with Autogun Performance ------------- Evolutions (5) 2500 Regions Visited (15) 3000 Robots Destroyed (255) 1275 Value Destroyed (11144) 11144 Prototype IDs (16) 320 Alien Tech Used (0) 0 Bonus (6123) 6123 TOTAL SCORE: 24362 Bonus ------- High Alert Combat Kills 1730 Follower Combat Kills 1404 Entered Garrisons 800 Used RIF Installer 2500 Friendly Fire -311 Cogmind --------- Core Integrity 0/1000 Matter 283/300 Energy 98/100 System Corruption 11% Temperature Cool (0) Movement Core (50) Location -5/Upper Caves Parts ------- > --- POWER (2) -------- (None) > --- PROPULSION (5) --- (None) > --- UTILITY (8) ------ 0b10 Decoder Chip [Generic] 0b10 Decoder Chip [Looter] 0b10 Decoder Chip [Scout] Hacking Suite Improved Hacking Suite Relay Coupler [NC] (11) Relay Coupler [NC] (40) > --- WEAPON (2) ------- (None) > --- INVENTORY (5) ---- Long-range Tractor Beam Heavy Linear Accelerator Improved Remote Datajack Great Maul Peak State ------------ > --- POWER ------------ Light Angular Momentum Engine Light Angular Momentum Engine > --- PROPULSION ------- Improved Treads Medium Treads Medium Treads Flexi-carbon Leg Flexi-carbon Leg > --- UTILITY ---------- Advanced Heat Sink Improved Cooling System Huge Storage Unit Transmission Jammer Improved Light Armor Plating Powered Armor Relay Coupler [NC] Relay Coupler [Hunter] > --- WEAPON ----------- Heavy Mass Driver > --- INVENTORY -------- Angular Momentum Engine Carbon-fiber Leg Improved Cooling System Improved Coolant Injector High-capacity Matter Pod Advanced Terrain Scanner Authchip [R/Combat] Relay Coupler [NC] Relay Coupler [NC] Relay Coupler [NC] Relay Coupler [Swarmer] Component Analysis Suite Long-range Tractor Beam Magnetic Acceleration Cannon Magnetic Acceleration Cannon Enhanced Gauss Cannon Heavy Linear Accelerator Improved Datajack Improved Remote Datajack Improved Remote Datajack Great Maul [Rating: 78] Favorites ----------- Power Light Ion Engine Engine Light Ion Engine Power Core Light Nuclear Core Propulsion Light Treads Treads Light Treads Leg Aluminum Leg Wheel Armored Huge Wheel Flight Unit Improved VTOL Module Utility Huge Storage Unit Device Improved Cooling System Storage Huge Storage Unit Processor Targeting Computer Hackware Hacking Suite Protection Improved Light Armor Plating Weapon Improved Assault Rifle Energy Gun Subdweller Laser Energy Cannon EM Pulse Cannon Ballistic Gun Improved Assault Rifle Ballistic Cannon Heavy Mass Driver Launcher Rocket Launcher Special Weapon Remote Datajack Impact Weapon Great Maul Special Melee Weapon Improved Datajack Build | -11 -10 -10 -8 -8 -8 -8 -7 -7 -6 -6 -6 -6 -5 -5 -5 ------- Run | Yrd Mat Sub Mat Gar Mat Gar Fac Gar Fac Was Fac Gar Fac Upp Upp Slots Evolved 10 | . . . 4 . . . 2 . 2 . . . 2 . . Power 1 | . . . . . . . . . 1 . . . . . . Propulsion 3 | . . . 1 . . . 1 . . . . . 1 . . Utility 6 | . . . 3 . . . 1 . 1 . . . 1 . . Weapon . | . . . . . . . . . . . . . . . . Parts Attached 337 | 2 10 23 31 20 45 21 27 29 12 4 33 32 39 5 4 Power 21 | . 1 1 3 1 1 1 . 1 2 1 2 3 4 . . Engine 17 | . 1 1 3 . . 1 . 1 1 1 1 3 4 . . Core 4 | . . . . 1 1 . . . 1 . 1 . . . . Reactor . | . . . . . . . . . . . . . . . . Propulsion 67 | 2 4 6 11 4 7 2 8 3 2 . 2 9 7 . . Treads 51 | 2 2 4 10 4 7 2 7 3 1 . 1 4 4 . . Leg 12 | . 2 2 . . . . . . . . . 5 3 . . Wheel 2 | . . . . . . . . . 1 . 1 . . . . Hover . | . . . . . . . . . . . . . . . . Flight 2 | . . . 1 . . . 1 . . . . . . . . Utility 94 | . 2 3 7 4 9 3 9 6 2 . 15 9 17 4 4 Device 30 | . . . 1 . 1 2 . 1 2 . 11 3 7 1 1 Storage 6 | . 1 1 1 . . . . 1 . . . . 2 . . Processor 11 | . 1 . 1 . 1 . 2 . . . 1 . 1 3 1 Hackware 24 | . . . 1 1 3 1 4 2 . . 3 2 5 . 2 Protection 23 | . . 2 3 3 4 . 3 2 . . . 4 2 . . Artifact . | . . . . . . . . . . . . . . . . Weapon 155 | . 3 13 10 11 28 15 10 19 6 3 14 11 11 1 . Energy Gun 2 | . . 2 . . . . . . . . . . . . . Energy Cannon 11 | . . . 1 4 2 . 1 3 . . . . . . . Ballistic Gun 56 | . 2 8 7 7 17 8 4 3 . . . . . . . Ballistic Cannon 31 | . . 1 . . . . . 6 3 2 8 5 6 . . Launcher 11 | . . . . . 1 2 . 3 1 . 1 3 . . . Special Weapon 27 | . 1 2 . . 5 1 4 2 1 1 5 2 3 . . Impact Weapon 6 | . . . . . . 3 1 1 . . . . . 1 . Slashing Weapon . | . . . . . . . . . . . . . . . . Piercing Weapon . | . . . . . . . . . . . . . . . . Special Melee Weapon 11 | . . . 2 . 3 1 . 1 1 . . 1 2 . . Unidentified Prototypes 3 | . . . 2 . 1 . . . . . . . . . . Corrupted Parts 1 | . . . . . . . . . . . . . 1 . . System Corruption 7 | . . . . . . . . . . . . . 7 . . Parts Lost 67 | . 2 2 2 8 5 . . 1 . . 4 10 28 4 1 Power 12 | . 1 . 1 1 1 . . . . . 1 2 5 . . Propulsion 15 | . 1 1 . 2 1 . . . . . . 2 8 . . Utility 25 | . . . 1 2 . . . 1 . . 2 4 10 4 1 Weapon 15 | . . 1 . 3 3 . . . . . 1 2 5 . . Highest Loss Streak 12 | . 1 1 1 4 2 . . 1 . . 2 10 12 4 1 To Critical Strikes 1 | . . . . 1 . . . . . . . . . . . Average Slot Usage (%) 93 | . 93 100 90 99 99 99 96 90 80 80 83 85 90 39 37 Engine 8 | . 14 14 9 7 . 7 7 7 7 6 6 11 10 . . Core 1 | . . . . 1 8 1 . . 4 6 6 . . . . Treads 20 | . 9 11 26 26 27 27 29 29 16 13 13 5 9 . . Leg 5 | . 18 16 . . . . . . . . . 19 15 . . Device 4 | . . . 8 . . 8 . 4 5 6 6 3 12 2 2 Storage 8 | . 14 14 9 9 9 9 7 7 6 6 6 6 4 . . Processor 3 | . 8 5 4 9 2 . . . . . 4 6 3 12 14 Hackware 9 | . . . 4 1 18 9 22 17 20 20 24 8 12 22 18 Protection 11 | . . 8 10 25 14 18 12 6 6 6 1 14 8 . . Ballistic Gun 12 | . 27 21 16 15 17 16 9 4 . . . . . . . Ballistic Cannon 1 | . . . . . . . . 6 5 1 5 5 5 . . Naked Turns . | . . . . . . . . . . . . . . . . Heaviest Build 142 | 11 16 53 111 110 104 107 114 130 142 142 142 127 139 5 1 Greatest Support 106 | 40 40 40 60 60 62 70 106 106 96 28 28 65 79 3 3 Greatest Overweight (x) 5 | . . 1 1 1 1 1 3 1 5 5 5 4 2 1 . Average Overweight (x) 1 | . . . 1 1 1 1 1 . 4 4 4 1 1 . . Largest Inventory Capacity 25 | 8 10 20 25 25 25 25 25 25 25 25 25 25 25 5 5 Average Capacity 21 | 8 9 12 21 25 25 25 25 25 25 25 25 25 24 5 5 Most Carried 25 | 6 10 20 25 25 25 25 25 25 25 25 25 25 25 5 5 Average Carried 20 | 6 8 11 20 24 23 24 23 24 24 23 23 19 21 4 5 Final Capacity 25 | 8 10 20 25 25 25 25 25 25 25 25 25 25 5 5 5 Final Carried 25 | 6 10 20 25 25 25 25 24 25 25 23 20 25 4 5 5 Class Distribution -------------------- 44% | Bothacker-Mutant 43% | Mutant 10% | Scavenger-Mutant Dominant Class ---------------- Mutant | -10/Materials Mutant | -10/Subcaves Mutant | -8/Materials Mutant | -8/Garrison Bothacker-Mutant | -8/Materials Bothacker-Mutant | -8/Garrison Bothacker-Mutant | -7/Factory Bothacker-Mutant | -7/Garrison Bothacker-Mutant | -6/Factory Bothacker-Mutant | -6/Waste Bothacker-Mutant | -6/Factory Scavenger-Mutant | -6/Garrison Bothacker-Mutant | -5/Factory Mutant | -5/Upper Caves Derelict-Mutant | -5/Upper Caves Resources | -11 -10 -10 -8 -8 -8 -8 -7 -7 -6 -6 -6 -6 -5 -5 -5 ----------- Run | Yrd Mat Sub Mat Gar Mat Gar Fac Gar Fac Was Fac Gar Fac Upp Upp Matter Collected 9623 | 220 235 449 1013 708 861 548 429 1294 382 . 1159 1217 997 70 41 Remotely 1300 | . . . . . . . . . . . 366 581 353 . . Salvage Created 9543 | . 327 652 1702 1152 1162 522 393 626 202 . 972 409 1376 48 . Parts 480 | . 28 36 112 66 57 30 20 29 16 . 33 13 40 . . Haulers Intercepted 10 | . . . 6 . 2 . . . . . 1 . 1 . . Recyclers Shooed 6 | . 1 . 2 . 2 . . . . . 1 . . . . Parts Field Recycled . | . . . . . . . . . . . . . . . . Retrieved Matter . | . . . . . . . . . . . . . . . . Parts Self-Destructed 16 | . . 16 . . . . . . . . . . . . . Prevented . | . . . . . . . . . . . . . . . . Kills | -11 -10 -10 -8 -8 -8 -8 -7 -7 -6 -6 -6 -6 -5 -5 -5 ------- Run | Yrd Mat Sub Mat Gar Mat Gar Fac Gar Fac Was Fac Gar Fac Upp Upp Combat Hostiles Destroyed 218 | . 11 12 27 30 22 12 9 27 9 . 17 17 25 . . Guns 114 | . 11 12 24 30 19 7 7 4 . . . . . . . Cannons 64 | . . . . . . . 2 12 5 . 11 11 23 . . AOE 38 | . . . 3 . 2 5 . 10 4 . 6 6 2 . . Classes Destroyed 20 | . 4 3 7 1 1 1 . 1 . . 1 . . 1 . Worker 5 | . 1 . 2 . 1 . . . . . . . 1 . . Builder 3 | . . . 1 . . . . . . . 2 . . . . Hauler 10 | . . . 6 . 2 . . . . . 1 . 1 . . Recycler 9 | . . . 2 . . . . . 1 . 4 . 2 . . Mechanic 2 | . 1 . 1 . . . . . . . . . . . . Operator 3 | . . . 2 . 1 . . . . . . . . . . Watcher 4 | . . . 3 . 1 . . . . . . . . . . Swarmer 56 | . 6 . 8 11 2 2 2 9 6 . 6 . 4 . . Cutter 4 | . . . . . . 1 . 3 . . . . . . . Grunt 81 | . 5 2 9 16 14 5 2 8 . . 6 6 8 . . Brawler 6 | . . . . . 1 . 1 . . . . 4 . . . Duelist 7 | . . . 1 1 1 . . . . . . 4 . . . Sentry 30 | . . 1 8 1 3 3 . 5 . . 1 3 5 . . Specialist 4 | . . . . . . . . . . . 2 . 2 . . Hunter 8 | . . . 1 . 1 1 1 . . . 1 . 3 . . Programmer 12 | . . . . 1 . . 3 1 3 . 1 . 3 . . Behemoth 1 | . . . . . . . . 1 . . . . . . . Cobbler 2 | . . 2 . . . . . . . . . . . . . Subdweller 9 | . . 9 . . . . . . . . . . . . . Samaritan 1 | . . . . . . . . . . . . . . 1 . Savage 1 | . . . . . . 1 . . . . . . . . . Best Kill Streak 10 | . 6 2 4 5 4 5 2 8 5 . 7 10 6 . . Combat Bots Only 10 | . 6 2 4 5 3 5 2 8 5 . 6 10 5 . . Max Kills in Single Turn 4 | . 1 2 3 1 1 2 1 4 3 . 3 4 2 1 . Gunslinging 1 | . . 1 . . . . . . . . . . . . . Exploded 4 | . . . 3 . 1 2 . 4 3 . 3 4 2 . . Melee . | . . . . . . . . . . . . . . . . Uniques/NPCs Destroyed . | . . . . . . . . . . . . . . . . Combat | -11 -10 -10 -8 -8 -8 -8 -7 -7 -6 -6 -6 -6 -5 -5 -5 -------- Run | Yrd Mat Sub Mat Gar Mat Gar Fac Gar Fac Was Fac Gar Fac Upp Upp Hostile Shots Fired 1525 | . 62 59 151 227 124 49 59 184 26 . 99 169 234 66 16 Missed 506 | . 13 19 48 60 43 17 16 85 9 . 42 49 64 34 7 Damage Taken 15613 | . 478 797 1078 2048 1532 459 669 1196 253 . 1230 1766 3467 507 133 Core 2245 | . 66 122 57 95 98 40 63 114 30 . 192 360 501 401 106 Absorbed by Shields 941 | . . . 374 236 . 26 . . . . . 305 . . . Redirected to Shielding 6 | . . . . . . . . . . . . 6 . . . Ignored by Resistances 9 | . . 9 . . . . . . . . . . . . . Regen/Repaired (Parts) 1304 | . 121 . 144 . 648 . 100 . . . 144 . 147 . . Core Remaining (%) 55 | 100 . 24 . . . 47 . 74 . . . 31 . . . Volleys Fired 766 | . 51 58 95 104 80 35 57 76 19 7 61 51 72 . . Largest 2 | . 2 2 2 2 2 2 2 2 1 1 1 2 2 . . Hottest 108 | . 100 100 85 63 63 53 108 106 75 5 75 75 106 . . Shots Fired 1236 | . 92 108 188 191 144 57 89 131 19 7 63 55 92 . . Gun 831 | . 82 97 187 176 128 46 61 54 . . . . . . . Cannon 303 | . . 4 1 15 5 . 9 65 17 . 53 45 89 . . Launcher 27 | . . . . . 3 3 . 9 2 . 3 7 . . . Special 75 | . 10 7 . . 8 8 19 3 . 7 7 3 3 . . Kinetic 1071 | . 82 90 173 176 128 46 61 111 17 . 53 45 89 . . Thermal 52 | . 10 18 15 . . . 9 . . . . . . . . Explosive 27 | . . . . . 3 3 . 9 2 . 3 7 . . . Electromagnetic 28 | . . . . 15 5 . . 8 . . . . . . . Robot Hit Streak 34 | . 10 23 34 24 20 9 11 34 7 3 12 17 30 . . Robot Miss Streak 11 | . 4 2 3 4 3 2 5 11 2 1 2 2 3 . . Penetration Max 1 | . . . . . 1 . . . . . . 1 1 . . Secondary Targets 17 | . 1 2 1 10 2 . 1 . . . . . . . . Max Gunslinging Chain 1 | . 1 1 1 1 1 . 1 . . . . . . . . Shots Hit Robots 916 | . 56 82 144 138 110 44 53 101 14 5 48 48 72 1 . Core Hits 434 | . 20 32 62 55 46 30 14 79 10 . 24 30 32 . . Critical Kills . | . . . . . . . . . . . . . . . . Critical Parts Destroyed 1 | . . . . . . 1 . . . . . . . . . Critical Strikes 24 | . . 1 . 1 . 1 . . 1 . 6 4 10 . . Destroy 3 | . . 1 . 1 . 1 . . . . . . . . . Blast 21 | . . . . . . . . . 1 . 6 4 10 . . Melee Attacks 25 | . . . 3 . 2 6 1 2 1 . . 7 2 1 . Impact 9 | . . . . . . 6 1 1 . . . . . 1 . Slashing . | . . . . . . . . . . . . . . . . Piercing . | . . . . . . . . . . . . . . . . Sneak Attacks 14 | . . . 3 . 2 . . . 1 . . 7 . 1 . Combat Hostiles . | . . . . . . . . . . . . . . . . Follow-up Attacks . | . . . . . . . . . . . . . . . . Damage Inflicted 26859 | . 610 1173 2826 2226 2343 1265 809 2925 1264 . 3451 3670 4199 98 . Guns 10077 | . 591 1125 2281 2226 1691 655 671 837 . . . . . . . Cannons 11959 | . . 48 . . 106 . 138 1295 994 . 2781 2465 4132 . . Explosions 4567 | . . . 458 . 516 610 . 793 270 . 670 1183 67 . . Melee 98 | . . . . . . . . . . . . . . 98 . Ramming 158 | . 19 . 87 . 30 . . . . . . 22 . . . Kinetic 21337 | . 591 1009 2076 2226 1691 655 671 2046 994 . 2781 2465 4132 . . Thermal 606 | . . 164 205 . . . 138 . . . 32 . 67 . . Explosive 4426 | . . . 458 . 516 610 . 793 270 . 596 1183 . . . Electromagnetic 234 | . . . . . 106 . . 86 . . 42 . . . . Impact 98 | . . . . . . . . . . . . . . 98 . Slashing . | . . . . . . . . . . . . . . . . Piercing . | . . . . . . . . . . . . . . . . Highest Corruption 34 | . . . . 1 1 1 2 3 1 19 20 34 11 11 11 Average Corruption 7 | . . . . 1 1 1 1 2 1 12 19 33 9 11 11 Corruption Purged . | . . . . . . . . . . . . . . . . Corruption Blocked . | . . . . . . . . . . . . . . . . Effects 244 | . . . . 7 18 15 10 26 3 7 48 67 27 11 5 Message Errors 64 | . . . . 3 5 4 2 10 1 3 9 13 8 5 1 Matter Fused 62 | . . . . 1 4 4 2 5 1 1 15 19 5 3 2 Heat Flow Errors 25 | . . . . . 3 1 2 3 . 1 5 6 3 . 1 Energy Discharges 24 | . . . . 1 . 2 3 4 . . 2 6 6 . . Parts Rejected 4 | . . . . . . . . . . 1 2 1 . . . Parts Fused 3 | . . . . . 1 . . . . . 1 1 . . . Data Loss (minor) 25 | . . . . 1 2 3 . 1 . . 4 11 3 . . Data Loss (major) 13 | . . . . 1 2 . 1 2 1 . 3 2 . . 1 Misfires 8 | . . . . . . . . . . . 3 5 . . . Alerts 5 | . . . . . 1 . . 1 . 1 . 1 1 . . Misdirections 6 | . . . . . . . . . . . 3 . . 3 . Weapon Failures 5 | . . . . . . 1 . . . . 1 2 1 . . Overload Shots . | . . . . . . . . . . . . . . . . Overflow Damage 1479 | . . . 18 . 6 . . 4 218 . 297 433 410 93 . Projectiles 1171 | . . . . . . . . . 186 . 257 318 410 . . Explosions 211 | . . . 14 . 6 . . 4 32 . 40 115 . . . Melee 97 | . . . 4 . . . . . . . . . . 93 . Knockbacks 65 | . . . . . . . . 19 6 . 11 7 22 . . Impact . | . . . . . . . . . . . . . . . . Kinetic 63 | . . . . . . . . 19 6 . 11 7 20 . . Secondary 2 | . . . . . . . . . . . . . 2 . . Self-Inflicted Damage 612 | . . . 73 . 93 54 . 37 . . 63 292 . . . Shots 13 | . . . 1 . 2 2 . 1 . . 1 6 . . . Rammed 14 | . 3 . 5 . 4 . . . . . . 2 . . . Targets Rammed 23 | . 7 . 8 . 5 . . . . . . 3 . . . Kicked 5 | . 4 . . . . . . . . . . 1 . . . Crushed 4 | . . . 3 . 1 . . . . . . . . . . Highest Temperature 274 | . 124 20 162 116 274 215 217 258 249 67 242 243 191 . 231 Average Temperature 54 | . 41 14 42 35 52 107 49 43 141 47 79 98 87 . 131 Received Heat Transfer 4219 | . 150 186 344 915 729 207 135 300 . . 288 263 675 27 . Effects 2 | . . . . . 1 . . . 1 . . . . . . Energy Bleed 1 | . . . . . . . . . 1 . . . . . . Interference 1 | . . . . . 1 . . . . . . . . . . Siege Activations . | . . . . . . . . . . . . . . . . Robots Corrupted 2 | . . . . . 1 . . 1 . . . . . . . Combat Hostiles 2 | . . . . . 1 . . 1 . . . . . . . Parts Fried 2 | . . . . . 2 . . . . . . . . . . Impact Corruptions 14 | . . . 1 . . . . . . . . . 2 11 . Robots Melted . | . . . . . . . . . . . . . . . . Combat Hostiles . | . . . . . . . . . . . . . . . . Parts Melted 2 | . . . . . 1 . . . . . . . 1 . . Heat Transferred 698 | . . 200 250 . . . 148 . . . 50 . 50 . . Parts Sabotaged . | . . . . . . . . . . . . . . . . Parts Stolen . | . . . . . . . . . . . . . . . . Parts Stripped . | . . . . . . . . . . . . . . . . Power Chain Reactions 3 | . . . . . . . . . . . 3 . . . . Alert | -11 -10 -10 -8 -8 -8 -8 -7 -7 -6 -6 -6 -6 -5 -5 -5 ------- Run | Yrd Mat Sub Mat Gar Mat Gar Fac Gar Fac Was Fac Gar Fac Upp Upp Peak Influence 1757 | . 295 . 542 1757 1004 1235 725 1147 650 80 398 856 868 . . Initial 856 | . . . . 352 856 256 648 242 602 80 56 168 449 . . Average 494 | . 96 . 161 1030 431 788 469 572 519 80 216 545 511 . . Maximum Alert Level 5 | . 1 . 2 5 3 4 3 4 2 . 1 3 3 . . Low Security (%) 22 | 100 94 . 70 . 10 . . . . 100 34 5 . . . Level 1 25 | . 5 . 24 4 35 25 45 35 22 . 65 24 7 . . Level 2 27 | . . . 4 19 35 5 53 29 77 . . 53 75 . . Level 3 14 | . . . . 25 17 34 1 32 . . . 16 16 . . Level 4 8 | . . . . 40 . 34 . 3 . . . . . . . Level 5 1 | . . . . 9 . . . . . . . . . . . High Security . | . . . . . . . . . . . . . . . . Max Security . | . . . . . . . . . . . . . . . . Squads Dispatched 34 | . 3 . 4 . 5 . 5 . 4 . 6 . 7 . . Investigation 11 | . 1 . 2 . 3 . 1 . . . 3 . 1 . . Extermination 7 | . . . . . . . 2 . 3 . 1 . 1 . . Reinforcement 11 | . 2 . 2 . . . 1 . . . 2 . 4 . . Assault 4 | . . . . . 2 . . . 1 . . . 1 . . Garrison 1 | . . . . . . . 1 . . . . . . . . Intercept . | . . . . . . . . . . . . . . . . Searches Triggered . | . . . . . . . . . . . . . . . . Construction Impeded 1 | . . . . . . . . . . . . . 1 . . Haulers Reinforced 2 | . . . . . . . 1 . . . 1 . . . . Active Scanning Responses . | . . . . . . . . . . . . . . . . Cargo Convoy Interrupts 1 | . . . . . . . . . . . . . 1 . . Stealth | -11 -10 -10 -8 -8 -8 -8 -7 -7 -6 -6 -6 -6 -5 -5 -5 --------- Run | Yrd Mat Sub Mat Gar Mat Gar Fac Gar Fac Was Fac Gar Fac Upp Upp Distress Signals 10 | . 2 . 3 . 2 . . . . . . . 3 . . Communications Jammed 33 | . . . . . . . . . . . . . 33 . . Distress Signals 33 | . . . . . . . . . . . . . 33 . . Times Spotted 387 | . 21 14 46 28 55 25 29 39 7 5 25 30 52 6 5 Peak Tracking Total 10 | . 7 2 6 4 5 6 6 7 5 3 4 10 5 6 5 Tactical Retreats 23 | . 1 1 6 . 2 1 2 . 1 . 2 3 3 1 . Traps | -11 -10 -10 -8 -8 -8 -8 -7 -7 -6 -6 -6 -6 -5 -5 -5 ------- Run | Yrd Mat Sub Mat Gar Mat Gar Fac Gar Fac Was Fac Gar Fac Upp Upp Traps Triggered 33 | . 2 . . 10 1 5 . 7 1 . 1 5 1 . . Indirectly . | . . . . . . . . . . . . . . . . Trap Hack Attempts 104 | . . . 66 . 38 . . . . . . . . . . Triggered 1 | . . . 1 . . . . . . . . . . . . Disarmed 3 | . . . 2 . 1 . . . . . . . . . . Reprogrammed 7 | . . . 4 . 3 . . . . . . . . . . Reused 5 | . . . 2 . 3 . . . . . . . . . . Traps Extracted . | . . . . . . . . . . . . . . . . Installed 3 | . . . 1 . 2 . . . . . . . . . . Triggered 7 | . . . 2 . 3 . . . . . . . 2 . . Most Traps Carried 2 | . . 1 1 2 2 . . . . . . . . . . Machines | -11 -10 -10 -8 -8 -8 -8 -7 -7 -6 -6 -6 -6 -5 -5 -5 ---------- Run | Yrd Mat Sub Mat Gar Mat Gar Fac Gar Fac Was Fac Gar Fac Upp Upp Machines Disabled 30 | . 1 1 2 4 3 1 . 2 1 . 8 1 6 . . Max in Single Turn 4 | . 1 1 1 1 2 1 . 1 1 . 4 1 4 . . Garrison Access 1 | . . . . . . . . . . . . . 1 . . Garrison Relay 8 | . . . . 4 . 1 . 2 . . . 1 . . . Machines Repaired . | . . . . . . . . . . . . . . . . Machines Dismantled . | . . . . . . . . . . . . . . . . Machines Sabotaged . | . . . . . . . . . . . . . . . . Overloaded Fab Kills . | . . . . . . . . . . . . . . . . Hacking | -11 -10 -10 -8 -8 -8 -8 -7 -7 -6 -6 -6 -6 -5 -5 -5 --------- Run | Yrd Mat Sub Mat Gar Mat Gar Fac Gar Fac Was Fac Gar Fac Upp Upp Machines Accessed 67 | . 6 2 12 4 12 4 4 2 3 . 10 2 5 1 . Terminals 43 | . 3 . 9 4 7 4 1 2 3 . 5 2 3 . . Fabricators 3 | . . . . . . . 1 . . . 2 . . . . Repair Stations 5 | . 1 . 1 . 2 . . . . . . . 1 . . Recycling Units 5 | . 2 . 1 . 1 . 1 . . . . . . . . Scanalyzers 3 | . . . . . 1 . . . . . 2 . . . . Garrison Access 5 | . . . 1 . 1 . 1 . . . 1 . 1 . . Total Hacks 178 | . 14 3 41 11 34 8 10 6 9 . 24 3 14 1 . Successful 86 | . 8 3 16 2 21 4 8 3 4 . 11 . 5 1 . Failed 91 | . 5 . 25 9 13 4 2 3 5 . 13 3 9 . . Catastrophic 27 | . 1 . 4 3 6 2 . . . . 6 2 3 . . Database Lockouts 1 | . 1 . . . . . . . . . . . . . . Manual 89 | . 6 . 29 1 18 2 5 4 8 . 11 . 5 . . Terminals 120 | . 9 . 31 11 22 8 3 6 9 . 13 3 5 . . Fabricators 6 | . . . . . . . 2 . . . 4 . . . . Repair Stations 15 | . 2 . 4 . 5 . . . . . . . 4 . . Recycling Units 9 | . 3 . 2 . 2 . 2 . . . . . . . . Scanalyzers 7 | . . . . . 2 . . . . . 5 . . . . Garrison Access 17 | . . . 4 . 3 . 3 . . . 2 . 5 . . Terminal Hacks 42 | . 5 3 7 2 12 3 2 1 3 . 3 . . 1 . Record 3 | . . 2 1 . . . . . . . . . . . . Robot Analysis 6 | . 2 . 3 . . . 1 . . . . . . . . Prototype ID Bank 2 | . . . . . 2 . . . . . . . . . . Open Door 2 | . . . . . . 1 . . . . . . . 1 . Branch Access Points 1 | . . . 1 . . . . . . . . . . . . Emergency Access Points 2 | . . . . 1 . 1 . . . . . . . . . Repair Station Index 1 | . . . . . 1 . . . . . . . . . . Unreport Threat 8 | . . . . . 4 . 1 . 2 . 1 . . . . Locate Traps 5 | . 1 . 2 . 1 . . . . . 1 . . . . Recall Assault 1 | . . . . . . . . . 1 . . . . . . Hauler Manifests 2 | . 1 . . . 1 . . . . . . . . . . Registered Components 1 | . . . . . 1 . . . . . . . . . . Zone Layout 4 | . 1 . . . 2 . . . . . 1 . . . . Patrol Navigation 3 | . . . . 1 . 1 . 1 . . . . . . . Derelict Proto ID Bank 1 | . . 1 . . . . . . . . . . . . . Fabricator Hacks 2 | . . . . . . . 1 . . . 1 . . . . Network Status 2 | . . . . . . . 1 . . . 1 . . . . Repair Station Hacks 12 | . 2 . 4 . 4 . . . . . . . 2 . . Scan Component 6 | . 1 . 2 . 2 . . . . . . . 1 . . Repair 6 | . 1 . 2 . 2 . . . . . . . 1 . . Recycling Unit Hacks 4 | . 1 . 1 . 1 . 1 . . . . . . . . Report Inventory 1 | . . . . . 1 . . . . . . . . . . Retrieve Components 3 | . 1 . 1 . . . 1 . . . . . . . . Scanalyzer 4 | . . . . . 2 . . . . . 2 . . . . Insert Component 3 | . . . . . 1 . . . . . 2 . . . . Analyze 1 | . . . . . 1 . . . . . . . . . . Garrison Access Hacks 5 | . . . 1 . 1 . 1 . . . 1 . 1 . . Unlock Access 5 | . . . 1 . 1 . 1 . . . 1 . 1 . . Unauthorized Hacks 17 | . . . 3 . 1 1 3 2 1 . 4 . 2 . . Terminals 7 | . . . 2 . . 1 . 2 1 . 1 . . . . Botnet 5 | . . . 2 . . . . 1 1 . 1 . . . . Disrupt 2 | . . . . . . 1 . 1 . . . . . . . Fabricators 3 | . . . . . . . 1 . . . 2 . . . . Liberate 3 | . . . . . . . 1 . . . 2 . . . . Repair Stations . | . . . . . . . . . . . . . . . . Recycling Units 3 | . . . 1 . 1 . 1 . . . . . . . . Reject 3 | . . . 1 . 1 . 1 . . . . . . . . Scanalyzers . | . . . . . . . . . . . . . . . . Garrison Access 4 | . . . . . . . 1 . . . 1 . 2 . . Reprogram 3 | . . . . . . . 1 . . . 1 . 1 . . Intercept 1 | . . . . . . . . . . . . . 1 . . Data Cores Recovered 1 | . . . 1 . . . . . . . . . . . . Used . | . . . . . . . . . . . . . . . . Hacking Detections 55 | . 6 . 11 4 10 2 3 2 3 . 8 2 4 . . Full Trace Events 12 | . . . 3 2 2 2 . . . . 2 . 1 . . Feedback Events . | . . . . . . . . . . . . . . . . Feedback Blocked . | . . . . . . . . . . . . . . . . Robot Schematics Acquired . | . . . . . . . . . . . . . . . . Robots Built . | . . . . . . . . . . . . . . . . Authchips . | . . . . . . . . . . . . . . . . Time . | . . . . . . . . . . . . . . . . Total Robot Build Rating . | . . . . . . . . . . . . . . . . Part Schematics Acquired . | . . . . . . . . . . . . . . . . Parts Built . | . . . . . . . . . . . . . . . . Authchips . | . . . . . . . . . . . . . . . . Time . | . . . . . . . . . . . . . . . . Total Part Build Rating . | . . . . . . . . . . . . . . . . Parts Repaired 6 | . 1 . 2 . 2 . . . . . . . 1 . . Time 204 | . 26 . 83 . 76 . . . . . . . 19 . . Parts Recycled . | . . . . . . . . . . . . . . . . Recycled Matter . | . . . . . . . . . . . . . . . . Retrieved Matter . | . . . . . . . . . . . . . . . . Retrieved Components 12 | . 2 . 9 . . . 1 . . . . . . . . Parts Scanalyzed 2 | . . . . . 1 . . . . . 1 . . . . Part Schematics Acquired . | . . . . . . . . . . . . . . . . Parts Damaged 1 | . . . . . . . . . . . 1 . . . . Bothacking | -11 -10 -10 -8 -8 -8 -8 -7 -7 -6 -6 -6 -6 -5 -5 -5 ------------ Run | Yrd Mat Sub Mat Gar Mat Gar Fac Gar Fac Was Fac Gar Fac Upp Upp Used RIF Installer 5 | . . . . 1 . 2 . 1 . . . 1 . . . Command Fork 1 | . . . . . . 1 . . . . . . . . . Zone Cloak 1 | . . . . . . . . . . . . 1 . . . Robot Detection 1 | . . . . . . 1 . . . . . . . . . Autooverride 1 | . . . . . . . . 1 . . . . . . . Robots Hacked 43 | . . . 2 . 7 . 11 4 1 5 8 . 5 . . Non-combat 10 | . . . 2 . 2 . 2 . . . 3 . 1 . . Combat 33 | . . . . . 5 . 9 4 1 5 5 . 4 . . Autooverrided 4 | . . . . . . . . 1 . . 2 . 1 . . Robot Hacks Applied 43 | . . . 3 . 9 . 12 3 1 5 6 . 4 . . no_distress 5 | . . . 3 . . . 1 . . . 1 . . . . purge_threat 1 | . . . . . 1 . . . . . . . . . . block_reporting 1 | . . . . . 1 . . . . . . . . . . ignore_targets 5 | . . . . . . . . . . 5 . . . . . overload_power 2 | . . . . . 1 . . . . . 1 . . . . amplify_resonance 2 | . . . . . . . 1 . . . . . 1 . . reboot_system 1 | . . . . . . . . 1 . . . . . . . overwrite_iff 6 | . . . . . . . 5 . . . 1 . . . . streamctrl_low 1 | . . . . . . . . . . . 1 . . . . streamctrl_high 3 | . . . . . 1 . . . . . . . 2 . . formatsys_low 3 | . . . . . 2 . 1 . . . . . . . . formatsys_high 13 | . . . . . 3 . 4 2 1 . 2 . 1 . . Relay Couplers Released 44 | . . . . 18 . 5 3 12 . . . 5 1 . . Machine Destruction 35 | . . . . 15 . 5 . 9 . . . 5 1 . . Programmers 9 | . . . . 3 . . 3 3 . . . . . . . Attached 18 | . . . . . 3 . 4 2 . . 3 2 4 . . Fabnet Peak Effective % . | . . . . . . . . . . . . . . . . Robots Rewired 13 | . . . . . . 7 . . . . . 6 . . . Allies Hacked 1 | . . . . 1 . . . . . . . . . . . Hacks Repelled . | . . . . . . . . . . . . . . . . Allies | -11 -10 -10 -8 -8 -8 -8 -7 -7 -6 -6 -6 -6 -5 -5 -5 -------- Run | Yrd Mat Sub Mat Gar Mat Gar Fac Gar Fac Was Fac Gar Fac Upp Upp Total Allies 52 | . . . . 2 6 7 12 4 1 1 9 6 4 . . Largest Group 4 | . . . . 2 2 4 3 3 1 1 2 4 1 . . Highest-Rated Group 184 | . . . . 70 49 102 64 64 27 31 58 184 41 . . Highest-Rated Ally 46 | . . . . 39 27 31 32 32 27 31 41 46 41 . . Total Orders 8 | . . . . . 4 . 1 . 1 . 2 . . . . STAY 4 | . . . . . 2 . . . 1 . 1 . . . . AID 4 | . . . . . 2 . 1 . . . 1 . . . . Ally Attacks 365 | . . . . 9 31 55 40 49 . 61 18 89 13 . . Total Damage 6422 | . . . . 132 476 1065 441 945 . 965 447 1522 429 . . Kills 44 | . . . . 1 5 16 4 3 . . 1 12 2 . . Allies Corrupted 1 | . . . . . . 1 . . . . . . . . . Allies Melted . | . . . . . . . . . . . . . . . . Intel | -11 -10 -10 -8 -8 -8 -8 -7 -7 -6 -6 -6 -6 -5 -5 -5 ------- Run | Yrd Mat Sub Mat Gar Mat Gar Fac Gar Fac Was Fac Gar Fac Upp Upp Robot Analysis Total 6 | . 2 . 3 . . . 1 . . . . . . . . Derelict Logs Recovered 4 | . . 2 . . . . . . . . . . . 2 . Drone Launches . | . . . . . . . . . . . . . . . . Drone Recoveries . | . . . . . . . . . . . . . . . . Exploration | -11 -10 -10 -8 -8 -8 -8 -7 -7 -6 -6 -6 -6 -5 -5 -5 ------------- Run | Yrd Mat Sub Mat Gar Mat Gar Fac Gar Fac Was Fac Gar Fac Upp Upp Turns Passed 23133 | 7 1170 3346 3480 2495 2267 1877 1472 1864 971 176 972 1201 1494 235 106 Spaces Moved 9331 | 3 525 1703 1035 851 735 693 506 653 474 97 443 423 560 430 200 Core 707 | . . . . . . . . . . . . . 77 430 200 Treads 5534 | 3 166 607 1035 851 735 693 506 653 82 . . 22 181 . . Legs 2141 | . 359 1096 . . . . . . . . . 384 302 . . Wheels 949 | . . . . . . . . . 392 97 443 17 . . . Hover . | . . . . . . . . . . . . . . . . Flight . | . . . . . . . . . . . . . . . . Fastest Speed 50 | 160 120 120 240 240 235 235 236 156 160 160 145 160 50 50 50 Average Speed 198 | 160 132 169 243 244 240 235 236 238 185 162 162 231 202 51 50 Slowest Speed 400 | 160 160 250 250 249 249 235 400 240 240 175 175 400 260 100 50 Overloaded Moves . | . . . . . . . . . . . . . . . . Propulsion Burnouts . | . . . . . . . . . . . . . . . . Robots Hopped . | . . . . . . . . . . . . . . . . Cave-ins Triggered . | . . . . . . . . . . . . . . . . Exploration Rate (%) 52 | 2 81 68 74 80 68 80 17 68 15 93 22 56 21 63 33 Regions Visited 15 Branch Regions 3 Pre-discovered Areas 1 | . . 1 . . . . . . . . . . . . . Known Exits Taken 5 | . . . 1 . 1 . 1 . . . 1 . . 1 . Unknown Exits Taken 4 | 1 1 1 . . . . . . . . . . 1 . . Scrap Searched 11 | . . 7 . . . . . . . . . . . 2 2 Spaces Dug 63 | . . . . . 14 4 1 39 . . 3 2 . . . Terrain Destroyed 284 | . 2 . 27 . 24 13 5 50 8 . 52 60 43 . . Melee 6 | . . . . . . 4 1 1 . . . . . . . Projectile 55 | . 2 . . . . . 4 . 6 . 13 11 19 . . AOE 223 | . . . 27 . 24 9 . 49 2 . 39 49 24 . . Terrain Rammed . | . . . . . . . . . . . . . . . . Walls Destroyed . | . . . . . . . . . . . . . . . . Machines Disabled . | . . . . . . . . . . . . . . . . Actions | -11 -10 -10 -8 -8 -8 -8 -7 -7 -6 -6 -6 -6 -5 -5 -5 --------- Run | Yrd Mat Sub Mat Gar Mat Gar Fac Gar Fac Was Fac Gar Fac Upp Upp Total 12648 | 4 889 2057 1806 1072 1082 888 706 838 546 114 615 573 815 439 204 Wait 1600 | . 286 234 484 66 132 100 88 30 16 1 52 10 101 . . Move 9319 | 2 524 1702 1035 850 735 691 506 652 474 96 442 422 559 429 200 Hop . | . . . . . . . . . . . . . . . . Pick Up 167 | . 8 21 34 14 19 8 12 17 10 1 4 8 9 2 . Fast Attach 84 | . 5 5 11 . 6 3 5 2 2 1 10 17 9 4 4 Attach 96 | . 2 3 3 8 6 1 3 3 8 3 16 14 25 1 . Detach 60 | . 1 1 3 . 3 1 2 1 2 2 13 17 13 1 . Swap 157 | 2 3 15 17 12 33 17 19 24 2 . 7 1 5 . . Drop 169 | . 2 18 38 6 18 10 12 17 12 3 8 5 19 1 . Fire 766 | . 51 58 95 104 80 35 57 76 19 7 61 51 72 . . Melee 25 | . . . 3 . 2 6 1 2 1 . . 7 2 1 . Ram 1 | . . . . . . . . . . . 1 . . . . Kick 5 | . 4 . . . . . . . . . . 1 . . . Crush 18 | . 3 . 8 . 5 . . . . . . 2 . . . Escape Stasis 39 | . . . . 12 . 5 . 12 . . . 10 . . . Rewire 27 | . . . . . 3 11 1 2 . . 1 8 1 . . Trap 107 | . . . 67 . 40 . . . . . . . . . . Miscellaneous 8 | . . . 8 . . . . . . . . . . . . Route ------- -11/Scrapyard -10/Materials (discovered 5 exits: [*Mat x2] / [*Min x2] / *Sub) -10/Subcaves -8/Materials (discovered 3 exits: *Fac x2 / Gar) -8/Garrison (discovered 3 exits: *Mat x3) -8/Materials (discovered 2 exits: *Fac / Gar) -8/Garrison (discovered 3 exits: *Fac x3) -7/Factory (discovered 5 exits: *Fac x2 / *Sto x2 / Gar) -7/Garrison (discovered 3 exits: *Fac x3) -6/Factory -6/Waste -6/Factory -6/Garrison (discovered 2 exits: *Fac x2) -5/Factory -5/Upper Caves -5/Upper Caves History --------- Turn | Location | Event 4 | -11/Scrapyard | Discovered new exit (range 1) 8 | -11/Scrapyard | Entered Materials 317 | -10/Materials | Build established: Mutant 435 | -10/Materials | Discovered new exit (range 15) 442 | -10/Materials | Central database locked down 442 | -10/Materials | Discovered new exit (range 15) 556 | -10/Materials | Repaired Lgt. Treads 623 | -10/Materials | Discovered new exit (range 13) 674 | -10/Materials | Discovered new exit (range 11) 1163 | -10/Materials | Discovered new exit (range 7) 1178 | -10/Materials | Entered Subcaves 2224 | -10/Subcaves | Discovered new exit (range 10) 2349 | -10/Subcaves | Visited 4L-MR0's lab 2378 | -10/Subcaves | Found Flightbrick 2472 | -10/Subcaves | Learned location of Zion (-6) 2472 | -10/Subcaves | Met a Zionite searching for "candidates" 2684 | -10/Subcaves | Learned 2 Materials zone layouts 2712 | -10/Subcaves | Visited Clippyterm 2783 | -10/Subcaves | Shifting Twisted Machinery released Mak. Light Armor Plating 2796 | -10/Subcaves | Learned Materials trap positions 3121 | -10/Subcaves | A swath of the cavern ceiling suddenly collapsed 3346 | -10/Subcaves | Core integrity fell below 50% 3593 | -10/Subcaves | Shifting Twisted Machinery released Shrapnel Trap 4524 | -10/Subcaves | Entered Materials 4524 | -8/Materials | Evolved 4 slots: Propulsion x1, Utility x3 4526 | -8/Materials | Loaded intel: 22 trap records 5226 | -8/Materials | Build established: Scavenger-Mutant 5548 | -8/Materials | Build established: Mutant 6603 | -8/Materials | Discovered new exit (range 15) 6742 | -8/Materials | Repaired Spk. Treads 6795 | -8/Materials | Repaired Imp. Assault Rifle 7043 | -8/Materials | Build established: Scavenger-Mutant 7465 | -8/Materials | Discovered new exit (range 3) 7933 | -8/Materials | Build established: Mutant 8004 | -8/Materials | Identified exit to Garrison 8004 | -8/Materials | Entered Garrison 8030 | -8/Garrison | Triggered checkpoint 8096 | -8/Garrison | Triggered checkpoint 8186 | -8/Garrison | Garrison Relay disabled 8418 | -8/Garrison | Triggered checkpoint 8532 | -8/Garrison | Triggered checkpoint 8604 | -8/Garrison | Garrison Relay disabled 8766 | -8/Garrison | Discovered new exit (range 15) 8836 | -8/Garrison | Triggered checkpoint 8879 | -8/Garrison | Garrison Relay disabled 9129 | -8/Garrison | Triggered checkpoint 9384 | -8/Garrison | Discovered new exit (range 12) 9407 | -8/Garrison | Rescued a captive Derelict 9415 | -8/Garrison | Rescued a captive Derelict 9690 | -8/Garrison | Triggered checkpoint 9751 | -8/Garrison | Garrison Relay disabled 9831 | -8/Garrison | Discovered new exit (range 12) 10006 | -8/Garrison | Lost 4 parts (1p1u2w) 10163 | -8/Garrison | Installed Relay Interface Framework 10456 | -8/Garrison | Build established: Bothacker-Mutant 10499 | -8/Garrison | Entered Materials 10899 | -8/Materials | First assault squad dispatched 11329 | -8/Materials | Repaired Hrd. Medium Armor Plating 11504 | -8/Materials | Discovered new exit (range 4) 12268 | -8/Materials | Build established: Mutant 12370 | -8/Materials | Repaired Imp. Light Armor Plating 12766 | -8/Materials | Identified exit to Garrison 12766 | -8/Materials | Entered Garrison 12766 | -8/Garrison | Accompanied by 1 ally 12822 | -8/Garrison | Garrison Relay disabled 12888 | -8/Garrison | Triggered checkpoint 13140 | -8/Garrison | Build established: Bothacker-Mutant 13244 | -8/Garrison | Triggered checkpoint 13259 | -8/Garrison | Triggered checkpoint 13399 | -8/Garrison | Discovered new exit (range 8) 13520 | -8/Garrison | Expanded RIF knowledge: Command Fork 13548 | -8/Garrison | Triggered checkpoint 13868 | -8/Garrison | Discovered new exit (range 12) 13902 | -8/Garrison | Triggered checkpoint 13936 | -8/Garrison | Core integrity fell below 50% 14088 | -8/Garrison | Lost 3 allies 14507 | -8/Garrison | Discovered new exit (range 10) 14606 | -8/Garrison | Expanded RIF knowledge: Robot Detection 14643 | -8/Garrison | Entered Factory 14643 | -7/Factory | Evolved 2 slots: Propulsion x1, Utility x1 14646 | -7/Factory | Attached Flightbrick, gained temporary slots: Utility x3 15194 | -7/Factory | Discovered new exit (range 12) 15227 | -7/Factory | Discovered new exit (range 5) 15353 | -7/Factory | Identified exit to Storage 15363 | -7/Factory | Identified exit to Factory 16009 | -7/Factory | Discovered exit to Storage (range 16) 16094 | -7/Factory | Discovered exit to Factory (range 16) 16109 | -7/Factory | Identified exit to Garrison 16115 | -7/Factory | Entered Garrison 16115 | -7/Garrison | Accompanied by 3 allies 16205 | -7/Garrison | Spotted B-75 Beast 16255 | -7/Garrison | Destroyed B-75 Beast 16544 | -7/Garrison | Triggered checkpoint 16553 | -7/Garrison | Triggered checkpoint 16553 | -7/Garrison | Triggered checkpoint 16615 | -7/Garrison | Destroyed 8 combat bots 16710 | -7/Garrison | Discovered exit to Factory (range 8) 16760 | -7/Garrison | Triggered checkpoint 16829 | -7/Garrison | Garrison Relay disabled 17106 | -7/Garrison | Triggered checkpoint 17184 | -7/Garrison | Garrison Relay disabled 17375 | -7/Garrison | Discovered exit to Factory (range 15) 17637 | -7/Garrison | Triggered checkpoint 17661 | -7/Garrison | Expanded RIF knowledge: Autooverride 17748 | -7/Garrison | Triggered checkpoint 17866 | -7/Garrison | Discovered exit to Factory (range 13) 17979 | -7/Garrison | Entered Factory 17979 | -6/Factory | Evolved 2 slots: Power x1, Utility x1 18679 | -6/Factory | First assault squad dispatched 18819 | -6/Factory | Discovered new exit (range 8) 18950 | -6/Factory | Sucked down chute 18950 | -6/Factory | Entered Waste 18951 | -6/Waste | Met a frightened Derelict 18965 | -6/Waste | EMP discharged 18965 | -6/Waste | System corruption reached 10% 18985 | -6/Waste | Spotted C-40 Crusher 19009 | -6/Waste | Spotted C-40 Crusher 19010 | -6/Waste | Spotted C-40 Crusher 19016 | -6/Waste | Spotted C-40 Crusher 19030 | -6/Waste | Spotted C-40 Crusher 19064 | -6/Waste | Spotted C-40 Crusher 19065 | -6/Waste | EMP discharged 19098 | -6/Waste | Discovered new exit (range 16) 19126 | -6/Waste | Entered Factory 20088 | -6/Factory | Identified exit to Garrison 20098 | -6/Factory | Entered Garrison 20098 | -6/Garrison | Accompanied by 2 allies 20169 | -6/Garrison | System corruption reached 30% 20170 | -6/Garrison | Core integrity fell below 50% 20206 | -6/Garrison | Lost 10 parts (2p2n4u2w) 20214 | -6/Garrison | Destroyed 10 combat bots 20514 | -6/Garrison | Triggered checkpoint 20525 | -6/Garrison | Triggered checkpoint 20591 | -6/Garrison | Lost 4 allies 20606 | -6/Garrison | Build established: Scavenger-Mutant 20735 | -6/Garrison | Discovered new exit (range 12) 20989 | -6/Garrison | Discovered new exit (range 12) 21080 | -6/Garrison | Triggered checkpoint 21097 | -6/Garrison | Garrison Relay disabled 21134 | -6/Garrison | Expanded RIF knowledge: Zone Cloak 21299 | -6/Garrison | Entered Factory 21299 | -5/Factory | Evolved 2 slots: Propulsion x1, Utility x1 21397 | -5/Factory | Build established: Bothacker-Mutant 21518 | -5/Factory | Repaired Imp. Light Armor Plating 21770 | -5/Factory | Identified exit to Garrison 21788 | -5/Factory | Spotted B-75 Beast 22104 | -5/Factory | Found Unknown Protection 22104 | -5/Factory | Identified Powered Armor 22202 | -5/Factory | System corruption reached 10% 22230 | -5/Factory | Cargo convoy interrupted 22469 | -5/Factory | Lost 4 parts (1p1n2u) 22761 | -5/Factory | Lost 12 parts (2p5n3u2w) 22779 | -5/Factory | Discovered new exit (range 9) 22792 | -5/Factory | Core integrity fell below 50% 22793 | -5/Factory | Entered Upper Caves 22820 | -5/Upper Caves | Lost 5 parts (1n3u1w) 22831 | -5/Upper Caves | Learned location of 1 exit from Factory 22974 | -5/Upper Caves | Identified exit to Upper Caves 23008 | -5/Upper Caves | Attracted the attention of an 0b10 checkpoint 23011 | -5/Upper Caves | Core integrity fell below 20% 23028 | -5/Upper Caves | Entered another Upper Caves area 23049 | -5/Upper Caves | Lost 4 parts (4u) 23134 | -5/Upper Caves | Destroyed by S-27 Virus with Autogun Last Messages --------------- 23066_ Found Hacking Suite. 23066_ Found 23 Matter. 23067_ System corrupted: Heat flow error (+271). 23067_ Acquired 0b10 Decoder Chip [Looter]. 23068_ M-22 Extractor extracts Fire Trap. 23068_ Acquired 23 matter. 23069_ Acquired Hacking Suite. 23072_ Acquired Reaction Control System. 23075_ Searching scrap... 23075_ Found Imp. Hacking Suite. 23075_ Found Energy Well. 23075_ Found Hcp. Storage Unit. 23075_ Found Mak. Spear. 23075_ Found 18 Matter. 23076_ Acquired 18 matter. 23076_ Acquired Imp. Hacking Suite. 23086_ System corrupted: Substantial component data lost. 23101_ System corrupted: Matter fused (-9). 23116_ IQ6URVTF UUTW7CQF